Workbook

Sheet КСП 2024 оформлено
D1: ПРИЛОЖЕНИЕ 4 к краткосрочному плану реализации региональной программы капитального ремонта общего имущества в многоквартирных домах Челябинской области на 2022-2024 годы
A2: Реестр многоквартирных домов по оказанию услуг и выполнению работ (в рамках II этапа Плана)
E3: ПРИЛОЖЕНИЕ 6 к краткосрочному плану реализации региональной программы капитального ремонта общего имущества в многоквартирных домах Челябинской области на 2022 - 2024 годы (в редакции постановления Правительства Челябинской области от 29.08.2023 г. № 450-П)
A6: Реестр многоквартирных домов по видам ремонта в рамках III этапа Плана
A7: № п/п | B7: Адрес многоквартирного дома* | C7: Стоимость капитального ремонта, всего | D7: Виды ремонта, установленные частью 1 статьи 166 Жилищного кодекса Российской Федерации | K7: Виды ремонта, установленные частью 1 статьи 166 Жилищного кодекса Российской Федерации | S7: Виды ремонта, установленные нормативным правовым актом Челябинской области | U7: Стоимость оказания услуг и выполнения работ по разработке проектной документации, всего | V7: Оказание услуг и выполнение работ по разработке проектной документации видов ремонта, установленных частью 1 статьи 166 Жилищного кодекса Российской Федерации | AG7: Оказание услуг и выполнение работ по разработке проектной документации видов ремонта, установленных нормативным правовым актом Челябинской области | AI7: Стоимость осуществления строительного контроля, всего | AJ7: Осуществление строительного контроля работ, установленных частью 1 статьи 166 Жилищного кодекса Российской Федерации | AU7: Осуществление строительного контроля работ, установленных нормативным правовым актом Челябинской области
D8: ремонт внутридомовых инженерных систем | E8: ремонт внутридомовых инженерных систем | K8: ремонт крыши | M8: ремонт подвальных помещений | O8: ремонт фасада | Q8: ремонт фундамента | S8: установка коллективных (общедомовых) узлов управления потреблением горячей воды | T8: установка коллективных (общедомовых) узлов управления потреблением тепловой энергии | V8: ремонт внутридомовых инженерных систем | W8: ремонт внутридомовых инженерных систем | AC8: ремонт крыши | AD8: ремонт подвальных помещений | AE8: ремонт фасада | AF8: ремонт фундамента | AG8: установка коллективных (общедомовых) узлов управления потреблением горячей воды | AH8: установка коллективных (общедомовых) узлов управления потреблением тепловой энергии | AJ8: ремонт внутридомовых инженерных систем | AK8: ремонт внутридомовых инженерных систем | AQ8: ремонт крыши | AR8: ремонт подвальных помещений | AS8: ремонт фасада | AT8: ремонт фундамента | AU8: установка коллективных (общедомовых) узлов управления потреблением горячей воды | AV8: установка коллективных (общедомовых) узлов управления потреблением тепловой энергии
E9: ЭЭ** | F9: ГВС*** | G9: ХВС**** | H9: ТС***** | I9: ВО****** | J9: ГС******* | W9: ЭЭ | X9: ГВС | Y9: ХВС | Z9: ТС | AA9: ВО | AB9: ГС | AK9: ЭЭ | AL9: ГВС | AM9: ХВС | AN9: ТС | AO9: ВО | AP9: ГС
C10: рублей | D10: рублей | E10: рублей | F10: рублей | G10: рублей | H10: рублей | I10: рублей | J10: рублей | K10: кв. метров | L10: рублей | M10: кв. метров | N10: рублей | O10: кв. метров | P10: рублей | Q10: куб. метров | R10: рублей | S10: рублей | T10: рублей | U10: рублей | V10: рублей | W10: рублей | X10: рублей | Y10: рублей | Z10: рублей | AA10: рублей | AB10: рублей | AC10: рублей | AD10: рублей | AE10: рублей | AF10: рублей | AG10: рублей | AH10: рублей | AI10: рублей | AJ10: рублей | AK10: рублей | AL10: рублей | AM10: рублей | AN10: рублей | AO10: рублей | AP10: рублей | AQ10: рублей | AR10: рублей | AS10: рублей | AT10: рублей | AU10: рублей | AV10: рублей
A11: 1 | B11: 2 | C11: 3 | D11: 4 | E11: 5 | F11: 6 | G11: 7 | H11: 8 | I11: 9 | J11: 10 | K11: 11 | L11: 12 | M11: 13 | N11: 14 | O11: 15 | P11: 16 | Q11: 17 | R11: 18 | S11: 19 | T11: 20 | U11: 21 | V11: 22 | W11: 23 | X11: 24 | Y11: 25 | Z11: 26 | AA11: 27 | AB11: 28 | AC11: 29 | AD11: 30 | AE11: 31 | AF11: 32 | AG11: 33 | AH11: 34 | AI11: 35 | AJ11: 36 | AK11: 37 | AL11: 38 | AM11: 39 | AN11: 40 | AO11: 41 | AP11: 42 | AQ11: 43 | AR11: 44 | AS11: 45 | AT11: 46 | AU11: 47 | AV11: 48
A12: Верхнеуфалейский городской округ
A13: 1. | B13: г. Верхний Уфалей, п. Строителей, д. 1 | C13: =SUM(E13:J13,L13,N13,P13,R13:T13,W13:AH13,AK13:AV13) -> 43759.57324 | D13: =SUM(E13:J13) -> 0 | U13: =SUM(W13:AH13) -> 43759.57324 | V13: =SUM(W13:AB13) -> 43759.57324 | AB13: 43759.57324 | AI13: =SUM(AK13:AV13) -> 0 | AJ13: =SUM(AK13:AP13) -> 0
A14: 2. | B14: г. Верхний Уфалей, п. Строителей, д. 10 | C14: =SUM(E14:J14,L14,N14,P14,R14:T14,W14:AH14,AK14:AV14) -> 43751.3782 | D14: =SUM(E14:J14) -> 0 | U14: 43751.3782 | V14: 43751.3782 | AB14: 43751.3782 | AI14: =SUM(AK14:AV14) -> 0 | AJ14: 0
A15: 3. | B15: г. Верхний Уфалей, п. Строителей, д. 21 | C15: 2451157.76 | D15: 0 | O15: 930 | P15: 2399802 | U15: 0 | V15: 0 | AI15: 51355.76 | AJ15: 0 | AS15: 51355.76
A16: 4. | B16: г. Верхний Уфалей, п. Строителей, д. 23 | C16: 47894.9953 | D16: 0 | U16: 47894.9953 | V16: 47894.9953 | AB16: 47894.9953 | AI16: 0 | AJ16: 0
A17: 5. | B17: г. Верхний Уфалей, п. Строителей, д. 25 | C17: 47613.2908 | D17: 0 | U17: 47613.2908 | V17: 47613.2908 | AB17: 47613.2908 | AI17: 0 | AJ17: 0
A18: 6. | B18: г. Верхний Уфалей, п. Строителей, д. 3 | C18: 43789.28026 | D18: 0 | U18: 43789.28026 | V18: 43789.28026 | AB18: 43789.28026 | AI18: 0 | AJ18: 0
A19: 7. | B19: г. Верхний Уфалей, п. Строителей, д. 5 | C19: 43765.71952 | D19: 0 | U19: 43765.71952 | V19: 43765.71952 | AB19: 43765.71952 | AI19: 0 | AJ19: 0
A20: 8. | B20: г. Верхний Уфалей, п. Строителей, д. 8 | C20: 43832.30422 | D20: 0 | U20: 43832.30422 | V20: 43832.30422 | AB20: 43832.30422 | AI20: 0 | AJ20: 0
A21: 9. | B21: г. Верхний Уфалей, п. Строителей, д. 9 | C21: 43855.86496 | D21: 0 | U21: 43855.86496 | V21: 43855.86496 | AB21: 43855.86496 | AI21: 0 | AJ21: 0
A22: 10. | B22: г. Верхний Уфалей, пер. Клубный, д. 5 | C22: 863909.71 | D22: 713525 | H22: 713525 | Q22: 343.07 | R22: 132373 | U22: 0 | V22: 0 | AI22: 18011.71 | AJ22: 15193.09 | AN22: 15193.09 | AT22: 2818.62
A23: 11. | B23: г. Верхний Уфалей, ул. Карла Маркса, д. 125 | C23: 40918.9675 | D23: 0 | U23: 40918.9675 | V23: 40918.9675 | AB23: 40918.9675 | AI23: 0 | AJ23: 0
A24: 12. | B24: г. Верхний Уфалей, ул. Карла Маркса, д. 2 | C24: 58327.69097 | D24: 0 | U24: 58327.69097 | V24: 58327.69097 | AB24: 58327.69097 | AI24: 0 | AJ24: 0
A25: 13. | B25: г. Верхний Уфалей, ул. Ленина, д. 1 | C25: 41009.99391 | D25: 0 | U25: 41009.99391 | V25: 41009.99391 | AB25: 41009.99391 | AI25: 0 | AJ25: 0
A26: 14. | B26: г. Верхний Уфалей, ул. Ленина, д. 166 | C26: 92344.76001 | D26: 0 | U26: 92344.76001 | V26: 92344.76001 | AB26: 92344.76001 | AI26: 0 | AJ26: 0
A27: 15. | B27: г. Верхний Уфалей, ул. Ленина, д. 170 | C27: 91727.05887 | D27: 0 | U27: 91727.05887 | V27: 91727.05887 | AB27: 91727.05887 | AI27: 0 | AJ27: 0
A28: 16. | B28: г. Верхний Уфалей, ул. Ленина, д. 180 | C28: 101055.8859 | D28: 0 | U28: 101055.8859 | V28: 101055.8859 | AB28: 101055.8859 | AI28: 0 | AJ28: 0
A29: 17. | B29: г. Верхний Уфалей, ул. Ленина, д. 184А | C29: 121731.7637 | D29: 0 | U29: 121731.7637 | V29: 121731.7637 | AB29: 121731.7637 | AI29: 0 | AJ29: 0
A30: 18. | B30: г. Верхний Уфалей, ул. Ленина, д. 184Б | C30: 121777.8608 | D30: 0 | U30: 121777.8608 | V30: 121777.8608 | AB30: 121777.8608 | AI30: 0 | AJ30: 0
A31: 19. | B31: г. Верхний Уфалей, ул. Ленина, д. 1А | C31: 41125.48251 | D31: 0 | U31: 41125.48251 | V31: 41125.48251 | AB31: 41125.48251 | AI31: 0 | AJ31: 0
A32: 20. | B32: г. Верхний Уфалей, ул. Ленина, д. 3 | C32: 41131.01416 | D32: 0 | U32: 41131.01416 | V32: 41131.01416 | AB32: 41131.01416 | AI32: 0 | AJ32: 0
A33: 21. | B33: г. Верхний Уфалей, ул. Ленина, д. 3А | C33: 41075.08301 | D33: 0 | U33: 41075.08301 | V33: 41075.08301 | AB33: 41075.08301 | AI33: 0 | AJ33: 0
A34: 22. | B34: г. Верхний Уфалей, ул. Лермонтова, д. 1 | C34: 64862.21533 | D34: 0 | U34: 64862.21533 | V34: 64862.21533 | AB34: 64862.21533 | AI34: 0 | AJ34: 0
A35: 23. | B35: г. Верхний Уфалей, ул. Лермонтова, д. 13 | C35: 129356.224 | D35: 0 | U35: 129356.224 | V35: 129356.224 | AB35: 129356.224 | AI35: 0 | AJ35: 0
A36: 24. | B36: г. Верхний Уфалей, ул. Лермонтова, д. 2 | C36: 59561.24937 | D36: 0 | U36: 59561.24937 | V36: 59561.24937 | AB36: 59561.24937 | AI36: 0 | AJ36: 0
A37: 25. | B37: г. Верхний Уфалей, ул. Лермонтова, д. 4 | C37: 59167.88745 | D37: 0 | U37: 59167.88745 | V37: 59167.88745 | AB37: 59167.88745 | AI37: 0 | AJ37: 0
A38: 26. | B38: г. Верхний Уфалей, ул. Лермонтова, д. 5 | C38: 38373.48401 | D38: 0 | U38: 38373.48401 | V38: 38373.48401 | AB38: 38373.48401 | AI38: 0 | AJ38: 0
A39: 27. | B39: г. Верхний Уфалей, ул. Маяковского, д. 14 | C39: 69278.93214 | D39: 0 | U39: 69278.93214 | V39: 69278.93214 | AB39: 69278.93214 | AI39: 0 | AJ39: 0
A40: 28. | B40: г. Верхний Уфалей, ул. Маяковского, д. 16 | C40: 69168.2991 | D40: 0 | U40: 69168.2991 | V40: 69168.2991 | AB40: 69168.2991 | AI40: 0 | AJ40: 0
A41: 29. | B41: г. Верхний Уфалей, ул. Маяковского, д. 20 | C41: 413984.8957 | D41: 0 | S41: 319328 | U41: 68926.13566 | V41: 68926.13566 | AB41: 68926.13566 | AI41: 25730.76 | AJ41: 0 | AU41: 25730.76
A42: 30. | B42: г. Верхний Уфалей, ул. Некрасова, д. 10 | C42: 43384.24041 | D42: 0 | U42: 43384.24041 | V42: 43384.24041 | AB42: 43384.24041 | AI42: 0 | AJ42: 0
A43: 31. | B43: г. Верхний Уфалей, ул. Некрасова, д. 12 | C43: 40957.07444 | D43: 0 | U43: 40957.07444 | V43: 40957.07444 | AB43: 40957.07444 | AI43: 0 | AJ43: 0
A44: 32. | B44: г. Верхний Уфалей, ул. Некрасова, д. 14 | C44: 40997.02526 | D44: 0 | U44: 40997.02526 | V44: 40997.02526 | AB44: 40997.02526 | AI44: 0 | AJ44: 0
A45: 33. | B45: г. Верхний Уфалей, ул. Некрасова, д. 2 | C45: 38233.96346 | D45: 0 | U45: 38233.96346 | V45: 38233.96346 | AB45: 38233.96346 | AI45: 0 | AJ45: 0
A46: 34. | B46: г. Верхний Уфалей, ул. Некрасова, д. 4 | C46: 38181.72008 | D46: 0 | U46: 38181.72008 | V46: 38181.72008 | AB46: 38181.72008 | AI46: 0 | AJ46: 0
A47: 35. | B47: г. Верхний Уфалей, ул. Некрасова, д. 6 | C47: 40821.24165 | D47: 0 | U47: 40821.24165 | V47: 40821.24165 | AB47: 40821.24165 | AI47: 0 | AJ47: 0
A48: 36. | B48: г. Верхний Уфалей, ул. Некрасова, д. 8 | C48: 42652.21846 | D48: 0 | U48: 42652.21846 | V48: 42652.21846 | AB48: 42652.21846 | AI48: 0 | AJ48: 0
A49: 37. | B49: г. Верхний Уфалей, ул. Победы, д. 24 | C49: 38169.42752 | D49: 0 | U49: 38169.42752 | V49: 38169.42752 | AB49: 38169.42752 | AI49: 0 | AJ49: 0
A50: 38. | B50: г. Верхний Уфалей, ул. Победы, д. 28 | C50: 37830.76749 | D50: 0 | U50: 37830.76749 | V50: 37830.76749 | AB50: 37830.76749 | AI50: 0 | AJ50: 0
A51: 39. | B51: г. Верхний Уфалей, ул. Победы, д. 32 | C51: 37802.4946 | D51: 0 | U51: 37802.4946 | V51: 37802.4946 | AB51: 37802.4946 | AI51: 0 | AJ51: 0
A52: 40. | B52: г. Верхний Уфалей, ул. Победы, д. 34 | C52: 57899.29526 | D52: 0 | U52: 57899.29526 | V52: 57899.29526 | AB52: 57899.29526 | AI52: 0 | AJ52: 0
A53: 41. | B53: г. Верхний Уфалей, ул. Победы, д. 38 | C53: 40880.86056 | D53: 0 | U53: 40880.86056 | V53: 40880.86056 | AB53: 40880.86056 | AI53: 0 | AJ53: 0
A54: 42. | B54: г. Верхний Уфалей, ул. Победы, д. 40 | C54: 43200.46664 | D54: 0 | U54: 43200.46664 | V54: 43200.46664 | AB54: 43200.46664 | AI54: 0 | AJ54: 0
A55: 43. | B55: г. Верхний Уфалей, ул. Победы, д. 49А | C55: 42662.05251 | D55: 0 | U55: 42662.05251 | V55: 42662.05251 | AB55: 42662.05251 | AI55: 0 | AJ55: 0
A56: 44. | B56: г. Верхний Уфалей, ул. Победы, д. 51 | C56: 41011.1617 | D56: 0 | U56: 41011.1617 | V56: 41011.1617 | AB56: 41011.1617 | AI56: 0 | AJ56: 0
A57: 45. | B57: г. Верхний Уфалей, ул. Победы, д. 51А | C57: 41010.54707 | D57: 0 | U57: 41010.54707 | V57: 41010.54707 | AB57: 41010.54707 | AI57: 0 | AJ57: 0
A58: 46. | B58: г. Верхний Уфалей, ул. Прямицына, д. 39 | C58: 144789.1266 | D58: 0 | U58: 144789.1266 | V58: 144789.1266 | AB58: 144789.1266 | AI58: 0 | AJ58: 0
A59: 47. | B59: г. Верхний Уфалей, ул. Строителей, д. 25 | C59: 41005.01542 | D59: 0 | U59: 41005.01542 | V59: 41005.01542 | AB59: 41005.01542 | AI59: 0 | AJ59: 0
A60: 48. | B60: г. Верхний Уфалей, ул. Суворова, д. 2 | C60: 98530.37946 | D60: 0 | U60: 98530.37946 | V60: 98530.37946 | AB60: 98530.37946 | AI60: 0 | AJ60: 0
A61: 49. | B61: г. Верхний Уфалей, ул. Уфалейская, д. 1 | C61: 40980.4303 | D61: 0 | U61: 40980.4303 | V61: 40980.4303 | AB61: 40980.4303 | AI61: 0 | AJ61: 0
A62: 50. | B62: г. Верхний Уфалей, ул. Уфалейская, д. 3 | C62: 41620.25805 | D62: 0 | U62: 41620.25805 | V62: 41620.25805 | AB62: 41620.25805 | AI62: 0 | AJ62: 0
A63: 51. | B63: г. Верхний Уфалей, ул. Худякова, д. 1 | C63: 40947.24039 | D63: 0 | U63: 40947.24039 | V63: 40947.24039 | AB63: 40947.24039 | AI63: 0 | AJ63: 0
A64: 52. | B64: г. Верхний Уфалей, ул. Худякова, д. 11 | C64: 40957.68906 | D64: 0 | U64: 40957.68906 | V64: 40957.68906 | AB64: 40957.68906 | AI64: 0 | AJ64: 0
A65: 53. | B65: г. Верхний Уфалей, ул. Худякова, д. 11А | C65: 40892.5385 | D65: 0 | U65: 40892.5385 | V65: 40892.5385 | AB65: 40892.5385 | AI65: 0 | AJ65: 0
A66: 54. | B66: г. Верхний Уфалей, ул. Худякова, д. 3 | C66: 40938.6356 | D66: 0 | U66: 40938.6356 | V66: 40938.6356 | AB66: 40938.6356 | AI66: 0 | AJ66: 0
A67: 55. | B67: г. Верхний Уфалей, ул. Худякова, д. 5 | C67: 40901.14329 | D67: 0 | U67: 40901.14329 | V67: 40901.14329 | AB67: 40901.14329 | AI67: 0 | AJ67: 0
A68: 56. | B68: г. Верхний Уфалей, ул. Худякова, д. 7 | C68: 40963.22072 | D68: 0 | U68: 40963.22072 | V68: 40963.22072 | AB68: 40963.22072 | AI68: 0 | AJ68: 0
A69: 57. | B69: г. Верхний Уфалей, ул. Худякова, д. 9 | C69: 40974.89865 | D69: 0 | U69: 40974.89865 | V69: 40974.89865 | AB69: 40974.89865 | AI69: 0 | AJ69: 0
A70: Итого по Верхнеуфалейскому городскому округу | C70: =SUM(C13:C69) -> 6688503.758 | D70: 713525 | E70: 0 | F70: 0 | G70: 0 | H70: 713525 | I70: 0 | J70: 0 | K70: 0 | L70: 0 | M70: 0 | N70: 0 | O70: 930 | P70: 2399802 | Q70: 343.07 | R70: 132373 | S70: 319328 | T70: 0 | U70: 3028377.528 | V70: 3028377.528 | W70: 0 | X70: 0 | Y70: 0 | Z70: 0 | AA70: 0 | AB70: 3028377.528 | AC70: 0 | AD70: 0 | AE70: 0 | AF70: 0 | AG70: 0 | AH70: 0 | AI70: 95098.23 | AJ70: 15193.09 | AK70: 0 | AL70: 0 | AM70: 0 | AN70: 15193.09 | AO70: 0 | AP70: 0 | AQ70: 0 | AR70: 0 | AS70: 51355.76 | AT70: 2818.62 | AU70: 25730.76 | AV70: 0
A71: Златоустовский городской округ
A72: 58. | B72: г. Златоуст, пер. Клубный, д. 1 | C72: =SUM(E72:J72,L72,N72,P72,R72:T72,W72:AH72,AK72:AV72) -> 91035.60237 | D72: =SUM(E72:J72) -> 0 | U72: =SUM(W72:AH72) -> 91035.60237 | V72: =SUM(W72:AB72) -> 91035.60237 | AB72: 91035.60237 | AI72: =SUM(AK72:AV72) -> 0 | AJ72: =SUM(AK72:AP72) -> 0
A73: 59. | B73: г. Златоуст, пр-кт им. Ю.А. Гагарина 1-я линия, д. 9 | C73: 146879.8862 | D73: 0 | U73: 146879.8862 | V73: 146879.8862 | AB73: 146879.8862 | AI73: 0 | AJ73: 0
A74: 60. | B74: г. Златоуст, пр-кт им. Ю.А. Гагарина 2-я линия, д. 4 | C74: 186983.8852 | D74: 0 | U74: 186983.8852 | V74: 186983.8852 | AB74: 186983.8852 | AI74: 0 | AJ74: 0
A75: 61. | B75: г. Златоуст, пр-кт Мира, д. 12 | C75: 91328.1653 | D75: 0 | U75: 91328.1653 | V75: 91328.1653 | AB75: 91328.1653 | AI75: 0 | AJ75: 0
A76: 62. | B76: г. Златоуст, пр-кт Мира, д. 18 | C76: 93201.55144 | D76: 0 | U76: 93201.55144 | V76: 93201.55144 | AB76: 93201.55144 | AI76: 0 | AJ76: 0
A77: 63. | B77: г. Златоуст, пр-кт Мира, д. 2 | C77: 98923.74138 | D77: 0 | U77: 98923.74138 | V77: 98923.74138 | AB77: 98923.74138 | AI77: 0 | AJ77: 0
A78: 64. | B78: г. Златоуст, пр-кт Мира, д. 20 | C78: 105767.0095 | D78: 0 | U78: 105767.0095 | V78: 105767.0095 | AB78: 105767.0095 | AI78: 0 | AJ78: 0
A79: 65. | B79: г. Златоуст, пр-кт Мира, д. 4 | C79: 1581847.2 | D79: 0 | S79: 1436215 | U79: 114897.2 | V79: 0 | AG79: 114897.2 | AI79: 30735 | AJ79: 0 | AU79: 30735
A80: 66. | B80: г. Златоуст, пр-кт Мира, д. 6 | C80: 59623.94142 | D80: 0 | U80: 59623.94142 | V80: 59623.94142 | AB80: 59623.94142 | AI80: 0 | AJ80: 0
A81: 67. | B81: г. Златоуст, пр-кт Мира, д. 8 | C81: 143771.9173 | D81: 0 | U81: 143771.9173 | V81: 143771.9173 | AB81: 143771.9173 | AI81: 0 | AJ81: 0
A82: 68. | B82: г. Златоуст, проезд Трамвайный, д. 3 | C82: 65167.68544 | D82: 0 | U82: 65167.68544 | V82: 65167.68544 | AB82: 65167.68544 | AI82: 0 | AJ82: 0
A83: 69. | B83: г. Златоуст, ул. Дачная, д. 1 | C83: 13785517.23 | D83: 0 | K83: 554.3 | L83: 4504796.1 | O83: 1368 | P83: 8745624 | Q83: 193 | R83: 246268 | U83: 0 | V83: 0 | AI83: 288829.13 | AJ83: 0 | AQ83: 96402.64 | AS83: 187156.35 | AT83: 5270.14
A84: 70. | B84: г. Златоуст, ул. Дворцовая, д. 14 | C84: 123045.0189 | D84: 0 | U84: 123045.0189 | V84: 123045.0189 | AB84: 123045.0189 | AI84: 0 | AJ84: 0
A85: 71. | B85: г. Златоуст, ул. Дворцовая, д. 16 | C85: 148201.3364 | D85: 0 | U85: 148201.3364 | V85: 148201.3364 | AB85: 148201.3364 | AI85: 0 | AJ85: 0
A86: 72. | B86: г. Златоуст, ул. Златоустовская, д. 44 | C86: 9660986.646 | D86: 2713514.6 | E86: 580265.6 | F86: 220584 | G86: 178332 | H86: 1548672 | I86: 185661 | K86: 261 | L86: 2121147 | O86: 347 | P86: 2218371 | Q86: 51.8 | R86: 66096.8 | S86: 1436215 | T86: 698804 | U86: 208799.4663 | V86: 37997.9463 | AB86: 37997.9463 | AG86: 114897.2 | AH86: 55904.32 | AI86: 198038.78 | AJ86: 58069.21 | AK86: 12417.68 | AL86: 4720.5 | AM86: 3816.3 | AN86: 33141.58 | AO86: 3973.15 | AQ86: 45392.55 | AS86: 47473.14 | AT86: 1414.47 | AU86: 30735 | AV86: 14954.41
A87: 73. | B87: г. Златоуст, ул. им. А.Н. Островского, д. 13 | C87: 88036.21773 | D87: 0 | U87: 88036.21773 | V87: 88036.21773 | AB87: 88036.21773 | AI87: 0 | AJ87: 0
A88: 74. | B88: г. Златоуст, ул. им. А.Н. Островского, д. 4 | C88: 69225.4595 | D88: 0 | U88: 69225.4595 | V88: 69225.4595 | AB88: 69225.4595 | AI88: 0 | AJ88: 0
A89: 75. | B89: г. Златоуст, ул. им. А.Н. Островского, д. 8 | C89: 70237.75182 | D89: 0 | U89: 70237.75182 | V89: 70237.75182 | AB89: 70237.75182 | AI89: 0 | AJ89: 0
A90: 76. | B90: г. Златоуст, ул. им. А.Н. Радищева, д. 3 | C90: 72310.89206 | D90: 0 | U90: 72310.89206 | V90: 72310.89206 | AB90: 72310.89206 | AI90: 0 | AJ90: 0
A91: 77. | B91: г. Златоуст, ул. им. А.Н. Радищева, д. 5 | C91: 67119.12934 | D91: 0 | U91: 67119.12934 | V91: 67119.12934 | AB91: 67119.12934 | AI91: 0 | AJ91: 0
A92: 78. | B92: г. Златоуст, ул. им. А.С. Грибоедова, д. 10 | C92: 58461.67988 | D92: 0 | U92: 58461.67988 | V92: 58461.67988 | AB92: 58461.67988 | AI92: 0 | AJ92: 0
A93: 79. | B93: г. Златоуст, ул. им. А.С. Грибоедова, д. 11 | C93: 101444.9454 | D93: 0 | U93: 101444.9454 | V93: 101444.9454 | AB93: 101444.9454 | AI93: 0 | AJ93: 0
A94: 80. | B94: г. Златоуст, ул. им. А.С. Грибоедова, д. 3Б | C94: 86849.98569 | D94: 0 | U94: 86849.98569 | V94: 86849.98569 | AB94: 86849.98569 | AI94: 0 | AJ94: 0
A95: 81. | B95: г. Златоуст, ул. им. А.С. Грибоедова, д. 5 | C95: 87658.83614 | D95: 0 | U95: 87658.83614 | V95: 87658.83614 | AB95: 87658.83614 | AI95: 0 | AJ95: 0
A96: 82. | B96: г. Златоуст, ул. им. А.С. Макаренко, д. 1 | C96: 94698.78525 | D96: 0 | U96: 94698.78525 | V96: 94698.78525 | AB96: 94698.78525 | AI96: 0 | AJ96: 0
A97: 83. | B97: г. Златоуст, ул. им. А.С. Макаренко, д. 2 | C97: 79073.91278 | D97: 0 | U97: 79073.91278 | V97: 79073.91278 | AB97: 79073.91278 | AI97: 0 | AJ97: 0
A98: 84. | B98: г. Златоуст, ул. им. А.С. Макаренко, д. 6 | C98: 65399.4002 | D98: 0 | U98: 65399.4002 | V98: 65399.4002 | AB98: 65399.4002 | AI98: 0 | AJ98: 0
A99: 85. | B99: г. Златоуст, ул. им. Б.А. Ручьева, д. 1 | C99: 65726.99692 | D99: 0 | U99: 65726.99692 | V99: 65726.99692 | AB99: 65726.99692 | AI99: 0 | AJ99: 0
A100: 86. | B100: г. Златоуст, ул. им. Б.А. Ручьева, д. 13 | C100: 41381.16776 | D100: 0 | U100: 41381.16776 | V100: 41381.16776 | AB100: 41381.16776 | AI100: 0 | AJ100: 0
A101: 87. | B101: г. Златоуст, ул. им. Б.А. Ручьева, д. 7 | C101: 91064.48989 | D101: 0 | U101: 91064.48989 | V101: 91064.48989 | AB101: 91064.48989 | AI101: 0 | AJ101: 0
A102: 88. | B102: г. Златоуст, ул. им. Братьев Пудовкиных, д. 3 | C102: 79235.55994 | D102: 0 | U102: 79235.55994 | V102: 79235.55994 | AB102: 79235.55994 | AI102: 0 | AJ102: 0
A103: 89. | B103: г. Златоуст, ул. им. Братьев Пудовкиных, д. 4 | C103: 1581847.2 | D103: 0 | S103: 1436215 | U103: 114897.2 | V103: 0 | AG103: 114897.2 | AI103: 30735 | AJ103: 0 | AU103: 30735
A104: 90. | B104: г. Златоуст, ул. им. Братьев Пудовкиных, д. 7 | C104: 79184.54582 | D104: 0 | U104: 79184.54582 | V104: 79184.54582 | AB104: 79184.54582 | AI104: 0 | AJ104: 0
A105: 91. | B105: г. Златоуст, ул. им. В.И. Ленина, д. 15 | C105: 78876.61719 | D105: 0 | U105: 78876.61719 | V105: 78876.61719 | AB105: 78876.61719 | AI105: 0 | AJ105: 0
A106: 92. | B106: г. Златоуст, ул. им. И.И. Шишкина, д. 5 | C106: 68894.78964 | D106: 0 | U106: 68894.78964 | V106: 68894.78964 | AB106: 68894.78964 | AI106: 0 | AJ106: 0
A107: 93. | B107: г. Златоуст, ул. им. И.М. Мельнова, д. 2 | C107: 91480.59304 | D107: 0 | U107: 91480.59304 | V107: 91480.59304 | AB107: 91480.59304 | AI107: 0 | AJ107: 0
A108: 94. | B108: г. Златоуст, ул. им. И.С. Тургенева, д. 14 | C108: 921689.7192 | D108: 0 | T108: 698804 | U108: 207931.3092 | V108: 152026.9892 | AB108: 152026.9892 | AH108: 55904.32 | AI108: 14954.41 | AJ108: 0 | AV108: 14954.41
A109: 95. | B109: г. Златоуст, ул. им. И.С. Тургенева, д. 15 | C109: 163527.7035 | D109: 0 | U109: 163527.7035 | V109: 163527.7035 | AB109: 163527.7035 | AI109: 0 | AJ109: 0
A110: 96. | B110: г. Златоуст, ул. им. И.С. Тургенева, д. 17 | C110: 99013.47706 | D110: 0 | U110: 99013.47706 | V110: 99013.47706 | AB110: 99013.47706 | AI110: 0 | AJ110: 0
A111: 97. | B111: г. Златоуст, ул. им. И.С. Тургенева, д. 4 | C111: 65189.81205 | D111: 0 | U111: 65189.81205 | V111: 65189.81205 | AB111: 65189.81205 | AI111: 0 | AJ111: 0
A112: 98. | B112: г. Златоуст, ул. им. И.С. Тургенева, д. 6 | C112: 128626.7733 | D112: 0 | U112: 128626.7733 | V112: 128626.7733 | AB112: 128626.7733 | AI112: 0 | AJ112: 0
A113: 99. | B113: г. Златоуст, ул. им. И.С. Тургенева, д. 7 | C113: 110545.7455 | D113: 0 | U113: 110545.7455 | V113: 110545.7455 | AB113: 110545.7455 | AI113: 0 | AJ113: 0
A114: 100. | B114: г. Златоуст, ул. им. Карла Маркса, д. 11 | C114: 73823969.61 | D114: 425950 | E114: 425950 | O114: 6402.35 | P114: 69678815.35 | Q114: 2513.4 | R114: 2441903.23 | U114: 228601.1387 | V114: 228601.1387 | W114: 34076 | AB114: 194525.1387 | AI114: 1048699.89 | AJ114: 9115.33 | AK114: 9115.33 | AS114: 1004385.73 | AT114: 35198.83
A115: 101. | B115: г. Златоуст, ул. им. Карла Маркса, д. 12 | C115: 80218.35011 | D115: 0 | U115: 80218.35011 | V115: 80218.35011 | AB115: 80218.35011 | AI115: 0 | AJ115: 0
A116: 102. | B116: г. Златоуст, ул. им. Карла Маркса, д. 13 | C116: 137577.4914 | D116: 0 | U116: 137577.4914 | V116: 137577.4914 | AB116: 137577.4914 | AI116: 0 | AJ116: 0
A117: 103. | B117: г. Златоуст, ул. им. Карла Маркса, д. 14 | C117: 769662.73 | D117: 0 | T117: 698804 | U117: 55904.32 | V117: 0 | AH117: 55904.32 | AI117: 14954.41 | AJ117: 0 | AV117: 14954.41
A118: 104. | B118: г. Златоуст, ул. им. Карла Маркса, д. 17 | C118: 42061369.43 | D118: 14304063.2 | E118: 3463338.6 | F118: 1506273.6 | G118: 1149816.8 | H118: 7082035.2 | I118: 1102599 | K118: 1391.85 | L118: 11311564.95 | M118: 613.2 | N118: 474616.8 | O118: 1961.69 | P118: 12541084.17 | Q118: 117 | R118: 149292 | S118: 1436215 | T118: 698804 | U118: 270134.6036 | V118: 99333.08362 | AB118: 99333.08362 | AG118: 114897.2 | AH118: 55904.32 | AI118: 875594.71 | AJ118: 306106.96 | AK118: 74115.45 | AL118: 32234.26 | AM118: 24606.08 | AN118: 151555.55 | AO118: 23595.62 | AQ118: 242067.49 | AR118: 10156.8 | AS118: 268379.2 | AT118: 3194.85 | AU118: 30735 | AV118: 14954.41
A119: 105. | B119: г. Златоуст, ул. им. Карла Маркса, д. 19 | C119: 19903210.75 | D119: 3444840 | F119: 504192 | G119: 407616 | H119: 2260224 | I119: 272808 | K119: 885.21 | L119: 7194101.67 | M119: 70 | N119: 54180 | O119: 981.78 | P119: 6276519.54 | Q119: 117.6 | R119: 150057.6 | S119: 1436215 | T119: 698804 | U119: 236441.9773 | V119: 65640.4573 | AB119: 65640.4573 | AG119: 114897.2 | AH119: 55904.32 | AI119: 412050.96 | AJ119: 73719.57 | AL119: 10789.71 | AM119: 8722.98 | AN119: 48368.79 | AO119: 5838.09 | AQ119: 153953.78 | AR119: 1159.45 | AS119: 134317.52 | AT119: 3211.23 | AU119: 30735 | AV119: 14954.41
A120: 106. | B120: г. Златоуст, ул. им. Карла Маркса, д. 20 | C120: 100408.6826 | D120: 0 | U120: 100408.6826 | V120: 100408.6826 | AB120: 100408.6826 | AI120: 0 | AJ120: 0
A121: 107. | B121: г. Златоуст, ул. им. Карла Маркса, д. 23 | C121: 1931604.297 | D121: 1826887.38 | E121: 1826887.38 | U121: 65621.52676 | V121: 65621.52676 | AB121: 65621.52676 | AI121: 39095.39 | AJ121: 39095.39 | AK121: 39095.39
A122: 108. | B122: г. Златоуст, ул. им. Карла Маркса, д. 24 | C122: 94966.14843 | D122: 0 | U122: 94966.14843 | V122: 94966.14843 | AB122: 94966.14843 | AI122: 0 | AJ122: 0
A123: 109. | B123: г. Златоуст, ул. им. Карла Маркса, д. 25 | C123: 14477384.11 | D123: 5615965.4 | F123: 822725.8 | G123: 665135.9 | H123: 3521484.8 | I123: 606618.9 | O123: 945.27 | P123: 6043111.11 | Q123: 116.4 | R123: 148526.4 | S123: 1436215 | T123: 698804 | U123: 236390.1027 | V123: 65588.5827 | AB123: 65588.5827 | AG123: 114897.2 | AH123: 55904.32 | AI123: 298372.1 | AJ123: 120181.65 | AL123: 17606.33 | AM123: 14233.91 | AN123: 75359.77 | AO123: 12981.64 | AS123: 129322.58 | AT123: 3178.46 | AU123: 30735 | AV123: 14954.41
A124: 110. | B124: г. Златоуст, ул. им. Карла Маркса, д. 29 | C124: 89165.904 | D124: 0 | U124: 89165.904 | V124: 89165.904 | AB124: 89165.904 | AI124: 0 | AJ124: 0
A125: 111. | B125: г. Златоуст, ул. им. Карла Маркса, д. 31 | C125: 122423.9476 | D125: 0 | U125: 122423.9476 | V125: 122423.9476 | AB125: 122423.9476 | AI125: 0 | AJ125: 0
A126: 112. | B126: г. Златоуст, ул. им. Карла Маркса, д. 33 | C126: 91724.60036 | D126: 0 | U126: 91724.60036 | V126: 91724.60036 | AB126: 91724.60036 | AI126: 0 | AJ126: 0
A127: 113. | B127: г. Златоуст, ул. им. Карла Маркса, д. 35 | C127: 140214.4504 | D127: 0 | U127: 140214.4504 | V127: 140214.4504 | AB127: 140214.4504 | AI127: 0 | AJ127: 0
A128: 114. | B128: г. Златоуст, ул. им. Карла Маркса, д. 37 | C128: 135777.6558 | D128: 0 | U128: 135777.6558 | V128: 135777.6558 | AB128: 135777.6558 | AI128: 0 | AJ128: 0
A129: 115. | B129: г. Златоуст, ул. им. Карла Маркса, д. 4 | C129: 208789535.1 | D129: 0 | K129: 3460.7 | L129: 41583771.2 | O129: 10008.34 | P129: 154959128.2 | Q129: 3458.28 | R129: 4412765.28 | U129: 3533419.219 | V129: 206717.5187 | AB129: 206717.5187 | AC129: 3326701.7 | AI129: 4300451.22 | AJ129: 0 | AQ129: 889892.7 | AS129: 3316125.34 | AT129: 94433.18
A130: 116. | B130: г. Златоуст, ул. им. Карла Маркса, д. 43 | C130: 102141.9336 | D130: 0 | U130: 102141.9336 | V130: 102141.9336 | AB130: 102141.9336 | AI130: 0 | AJ130: 0
A131: 117. | B131: г. Златоуст, ул. им. Карла Маркса, д. 47 | C131: 181789.0222 | D131: 0 | U131: 181789.0222 | V131: 181789.0222 | AB131: 181789.0222 | AI131: 0 | AJ131: 0
A132: 118. | B132: г. Златоуст, ул. им. Карла Маркса, д. 49 | C132: 102019.008 | D132: 0 | U132: 102019.008 | V132: 102019.008 | AB132: 102019.008 | AI132: 0 | AJ132: 0
A133: 119. | B133: г. Златоуст, ул. им. Карла Маркса, д. 8 | C133: 48366990.13 | D133: 0 | O133: 3836.7 | P133: 44434939.79 | Q133: 1192.05 | R133: 3070598.27 | U133: 101640.3971 | V133: 101640.3971 | AB133: 101640.3971 | AI133: 759811.67 | AJ133: 0 | AS133: 710700 | AT133: 49111.67
A134: 120. | B134: г. Златоуст, ул. им. Карла Маркса, д. 9 | C134: 89760.8639 | D134: 0 | U134: 89760.8639 | V134: 89760.8639 | AB134: 89760.8639 | AI134: 0 | AJ134: 0
A135: 121. | B135: г. Златоуст, ул. им. М.И. Калинина, д. 1 | C135: 19819586.52 | D135: 6760161 | E135: 1731791 | F135: 703768 | G135: 568964 | H135: 3460096 | I135: 295542 | M135: 46.3 | N135: 35836.2 | O135: 1586.7 | P135: 10143773.1 | Q135: 60.2 | R135: 76815.2 | S135: 1436215 | T135: 698804 | U135: 258137.6764 | V135: 87336.15644 | AB135: 87336.15644 | AG135: 114897.2 | AH135: 55904.32 | AI135: 409844.34 | AJ135: 144667.45 | AK135: 37060.33 | AL135: 15060.64 | AM135: 12175.83 | AN135: 74046.05 | AO135: 6324.6 | AR135: 766.89 | AS135: 217076.74 | AT135: 1643.85 | AU135: 30735 | AV135: 14954.41
A136: 122. | B136: г. Златоуст, ул. им. М.И. Калинина, д. 8 | C136: =SUM(E136:J136,L136,N136,P136,R136:T136,W136:AH136,AK136:AV136) -> 11016662.42 | D136: =SUM(E136:J136) -> 1736172.1 | E136: 97360 | G136: 467696.9 | H136: 716435.2 | I136: 454680 | K136: 260.1 | L136: 2113832.7 | O136: 840 | P136: 5370120 | Q136: 40 | R136: 51040 | T136: 698804 | U136: =SUM(W136:AH136) -> 833336.2876 | V136: =SUM(W136:AB136) -> 174632.5476 | W136: 7788.8 | Y136: 37415.75 | Z136: 57314.82 | AA136: 36374.4 | AB136: 35738.77757 | AC136: 169106.62 | AE136: 429609.6 | AF136: 4083.2 | AH136: 55904.32 | AI136: =SUM(AK136:AV136) -> 213357.33 | AJ136: =SUM(AK136:AP136) -> 37154.07 | AK136: 2083.5 | AM136: 10008.71 | AN136: 15331.71 | AO136: 9730.15 | AQ136: 45236.02 | AS136: 114920.57 | AT136: 1092.26 | AV136: 14954.41
A137: 123. | B137: г. Златоуст, ул. им. Максима Горького, д. 5 | C137: 3367405.65 | D137: 3296853 | E137: 3296853 | U137: 0 | V137: 0 | AI137: 70552.65 | AJ137: 70552.65 | AK137: 70552.65
A138: 124. | B138: г. Златоуст, ул. им. Н.А. Некрасова, д. 3 | C138: 31646043.5 | D138: 9331765.5 | E138: 3234177.5 | F138: 1481064 | G138: 1074238 | H138: 3034560 | I138: 507726 | K138: 1019.5 | L138: 8285476.5 | O138: 1705.2 | P138: 10901343.6 | Q138: 127.1 | R138: 162179.6 | S138: 1436215 | T138: 698804 | U138: 170801.52 | V138: 0 | AG138: 114897.2 | AH138: 55904.32 | AI138: 659457.78 | AJ138: 199699.78 | AK138: 69211.4 | AL138: 31694.77 | AM138: 22988.69 | AN138: 64939.58 | AO138: 10865.34 | AQ138: 177309.2 | AS138: 233288.75 | AT138: 3470.64 | AU138: 30735 | AV138: 14954.41
A139: 125. | B139: г. Златоуст, ул. им. Н.А. Некрасова, д. 4 | C139: 15322014.23 | D139: 1602133 | E139: 696124 | F139: 128674 | G139: 104027 | H139: 627840 | I139: 45468 | K139: 519 | L139: 4217913 | M139: 74.2 | N139: 57430.8 | O139: 909.34 | P139: 5813410.62 | Q139: 67 | R139: 85492 | S139: 1436215 | T139: 698804 | U139: 1112911.87 | V139: 128170.64 | W139: 55689.92 | X139: 10293.92 | Y139: 8322.16 | Z139: 50227.2 | AA139: 3637.44 | AC139: 337433.04 | AD139: 4594.46 | AE139: 465072.85 | AF139: 6839.36 | AG139: 114897.2 | AH139: 55904.32 | AI139: 297703.94 | AJ139: 34285.65 | AK139: 14897.05 | AL139: 2753.62 | AM139: 2226.18 | AN139: 13435.78 | AO139: 973.02 | AQ139: 90263.34 | AR139: 1229.02 | AS139: 124406.99 | AT139: 1829.53 | AU139: 30735 | AV139: 14954.41
A140: 126. | B140: г. Златоуст, ул. им. Н.А. Некрасова, д. 6 | C140: 13464642.88 | D140: 2088229 | E140: 687605 | F140: 341380 | G140: 193193 | H140: 809216 | I140: 56835 | K140: 527 | L140: 4282929 | M140: 87.5 | N140: 67725 | O140: 557.7 | P140: 3565376.1 | Q140: 67.2 | R140: 85747.2 | S140: 1436215 | T140: 698804 | U140: 978002.03 | V140: 167058.32 | W140: 55008.4 | X140: 27310.4 | Y140: 15455.44 | Z140: 64737.28 | AA140: 4546.8 | AC140: 342634.32 | AD140: 5418 | AE140: 285230.09 | AF140: 6859.78 | AG140: 114897.2 | AH140: 55904.32 | AI140: 261615.55 | AJ140: 44688.1 | AK140: 14714.75 | AL140: 7305.53 | AM140: 4134.33 | AN140: 17317.22 | AO140: 1216.27 | AQ140: 91654.68 | AR140: 1449.32 | AS140: 76299.05 | AT140: 1834.99 | AU140: 30735 | AV140: 14954.41
A141: 127. | B141: г. Златоуст, ул. им. П.А. Румянцева, д. 10 | C141: 93354.59382 | D141: 0 | U141: 93354.59382 | V141: 93354.59382 | AB141: 93354.59382 | AI141: 0 | AJ141: 0
A142: 128. | B142: г. Златоуст, ул. им. П.А. Румянцева, д. 16 | C142: 88120.36031 | D142: 0 | U142: 88120.36031 | V142: 88120.36031 | AB142: 88120.36031 | AI142: 0 | AJ142: 0
A143: 129. | B143: г. Златоуст, ул. им. П.П. Аносова, д. 176 | C143: 105873.3402 | D143: 0 | U143: 105873.3402 | V143: 105873.3402 | AB143: 105873.3402 | AI143: 0 | AJ143: 0
A144: 130. | B144: г. Златоуст, ул. им. П.П. Аносова, д. 178 | C144: 160914.5101 | D144: 0 | U144: 160914.5101 | V144: 160914.5101 | AB144: 160914.5101 | AI144: 0 | AJ144: 0
A145: 131. | B145: г. Златоуст, ул. им. П.П. Аносова, д. 221 | C145: 66429.51673 | D145: 0 | U145: 66429.51673 | V145: 66429.51673 | AB145: 66429.51673 | AI145: 0 | AJ145: 0
A146: 132. | B146: г. Златоуст, ул. им. П.П. Аносова, д. 247 | C146: 130893.8184 | D146: 0 | U146: 130893.8184 | V146: 130893.8184 | AB146: 130893.8184 | AI146: 0 | AJ146: 0
A147: 133. | B147: г. Златоуст, ул. им. П.П. Аносова, д. 249 | C147: 148030.2649 | D147: 0 | U147: 148030.2649 | V147: 148030.2649 | AB147: 148030.2649 | AI147: 0 | AJ147: 0
A148: 134. | B148: г. Златоуст, ул. им. П.П. Аносова, д. 251 | C148: 144591.4213 | D148: 0 | U148: 144591.4213 | V148: 144591.4213 | AB148: 144591.4213 | AI148: 0 | AJ148: 0
A149: 135. | B149: г. Златоуст, ул. им. Риты Сергеевой, д. 11 | C149: 53667.88716 | D149: 0 | U149: 53667.88716 | V149: 53667.88716 | AB149: 53667.88716 | AI149: 0 | AJ149: 0
A150: 136. | B150: г. Златоуст, ул. им. Риты Сергеевой, д. 13 | C150: 38181.10545 | D150: 0 | U150: 38181.10545 | V150: 38181.10545 | AB150: 38181.10545 | AI150: 0 | AJ150: 0
A151: 137. | B151: г. Златоуст, ул. им. Риты Сергеевой, д. 15 | C151: 37354.43079 | D151: 0 | U151: 37354.43079 | V151: 37354.43079 | AB151: 37354.43079 | AI151: 0 | AJ151: 0
A152: 138. | B152: г. Златоуст, ул. им. Риты Сергеевой, д. 19 | C152: 8939794.81 | D152: 2481289.9 | E152: 567973.9 | G152: 205931 | H152: 1597504 | I152: 109881 | K152: 349.78 | L152: 2842662.06 | O152: 382.5 | P152: 2445322.5 | Q152: 180 | R152: 229680 | T152: 698804 | U152: 55904.32 | V152: 0 | AH152: 55904.32 | AI152: 186132.03 | AJ152: 53099.6 | AK152: 12154.64 | AM152: 4406.92 | AN152: 34186.59 | AO152: 2351.45 | AQ152: 60832.97 | AS152: 52329.9 | AT152: 4915.15 | AV152: 14954.41
A153: 139. | B153: г. Златоуст, ул. им. Риты Сергеевой, д. 21 | C153: 38249.32916 | D153: 0 | U153: 38249.32916 | V153: 38249.32916 | AB153: 38249.32916 | AI153: 0 | AJ153: 0
A154: 140. | B154: г. Златоуст, ул. им. Риты Сергеевой, д. 23 | C154: 8305700.701 | D154: 1370732.7 | E154: 442866.3 | G154: 106150 | H154: 629235.2 | I154: 192481.2 | K154: 414.5 | L154: 3368641.5 | M154: 127.5 | N154: 98685 | O154: 386.8 | P154: 2472812.4 | Q154: 24.1 | R154: 30751.6 | T154: 698804 | U154: 93208.35129 | V154: 37304.03129 | AB154: 37304.03129 | AH154: 55904.32 | AI154: 172065.15 | AJ154: 29333.68 | AK154: 9477.34 | AM154: 2271.61 | AN154: 13465.63 | AO154: 4119.1 | AQ154: 72088.93 | AR154: 2111.86 | AS154: 52918.19 | AT154: 658.08 | AV154: 14954.41
A155: 141. | B155: г. Златоуст, ул. им. Риты Сергеевой, д. 25 | C155: 7981467.877 | D155: 1151947.4 | E155: 449073 | G155: 106150 | H155: 452742.4 | I155: 143982 | K155: 414.5 | L155: 3368641.5 | O155: 386.8 | P155: 2472812.4 | Q155: 24.1 | R155: 30751.6 | T155: 698804 | U155: 93239.69732 | V155: 37335.37732 | AB155: 37335.37732 | AH155: 55904.32 | AI155: 165271.28 | AJ155: 24651.67 | AK155: 9610.16 | AM155: 2271.61 | AN155: 9688.69 | AO155: 3081.21 | AQ155: 72088.93 | AS155: 52918.19 | AT155: 658.08 | AV155: 14954.41
A156: 142. | B156: г. Златоуст, ул. им. Риты Сергеевой, д. 29 | C156: 14851558.13 | D156: 2563711.2 | E156: 873684.3 | G156: 56259.5 | H156: 1190454.4 | I156: 443313 | K156: 623 | L156: 5063121 | M156: 190 | N156: 147060 | O156: 914.3 | P156: 5845119.9 | Q156: 100 | R156: 127600 | T156: 698804 | U156: 97010.13441 | V156: 41105.81441 | AB156: 41105.81441 | AH156: 55904.32 | AI156: 309131.9 | AJ156: 54863.41 | AK156: 18696.84 | AM156: 1203.95 | AN156: 25475.72 | AO156: 9486.9 | AQ156: 108350.79 | AR156: 3147.08 | AS156: 125085.57 | AT156: 2730.64 | AV156: 14954.41
A157: 143. | B157: г. Златоуст, ул. им. Риты Сергеевой, д. 3 | C157: 23316153.07 | D157: 5784237.5 | E157: 2030199.4 | G157: 392118.1 | H157: 2270688 | I157: 1091232 | K157: 900 | L157: 7314300 | M157: 97 | N157: 75078 | O157: 1368 | P157: 8745624 | Q157: 53.2 | R157: 67883.2 | T157: 698804 | U157: 144747.5443 | V157: 88843.2243 | AB157: 88843.2243 | AH157: 55904.32 | AI157: 485478.83 | AJ157: 123782.68 | AK157: 43446.27 | AM157: 8391.33 | AN157: 48592.72 | AO157: 23352.36 | AQ157: 156526.02 | AR157: 1606.67 | AS157: 187156.35 | AT157: 1452.7 | AV157: 14954.41
A158: 144. | B158: г. Златоуст, ул. им. Риты Сергеевой, д. 37 | C158: 13214597.26 | D158: 2315487.2 | E158: 834740.3 | G158: 56259.5 | H158: 981174.4 | I158: 443313 | K158: 776.4 | L158: 6309802.8 | M158: 40 | N158: 30960 | O158: 535.6 | P158: 3424090.8 | Q158: 50 | R158: 63800 | T158: 698804 | U158: 96813.45345 | V158: 40909.13345 | AB158: 40909.13345 | AH158: 55904.32 | AI158: 274839.01 | AJ158: 49551.42 | AK158: 17863.44 | AM158: 1203.95 | AN158: 20997.13 | AO158: 9486.9 | AQ158: 135029.78 | AR158: 662.54 | AS158: 73275.54 | AT158: 1365.32 | AV158: 14954.41
A159: 145. | B159: г. Златоуст, ул. им. Риты Сергеевой, д. 5 | C159: 89851.21422 | D159: 0 | U159: 89851.21422 | V159: 89851.21422 | AB159: 89851.21422 | AI159: 0 | AJ159: 0
A160: 146. | B160: г. Златоуст, ул. им. Риты Сергеевой, д. 7 | C160: 88894.85305 | D160: 0 | U160: 88894.85305 | V160: 88894.85305 | AB160: 88894.85305 | AI160: 0 | AJ160: 0
A161: 147. | B161: г. Златоуст, ул. им. Риты Сергеевой, д. 9 | C161: 23993234.24 | D161: 6083382.8 | E161: 2399802.3 | G161: 392118.1 | H161: 2200230.4 | I161: 1091232 | K161: 945.2 | L161: 7681640.4 | M161: 90 | N161: 69660 | O161: 1368 | P161: 8745624 | Q161: 53.2 | R161: 67883.2 | T161: 698804 | U161: 146614.1695 | V161: 90709.84953 | AB161: 90709.84953 | AH161: 55904.32 | AI161: 499625.67 | AJ161: 130184.39 | AK161: 51355.77 | AM161: 8391.33 | AN161: 47084.93 | AO161: 23352.36 | AQ161: 164387.1 | AR161: 1490.72 | AS161: 187156.35 | AT161: 1452.7 | AV161: 14954.41
A162: 148. | B162: г. Златоуст, ул. им. Я.М. Свердлова, д. 104 | C162: 17462744.97 | D162: 2809360.1 | E162: 924311.5 | F162: 265488.6 | G162: 74305 | H162: 1412640 | I162: 132615 | K162: 686.45 | L162: 5578779.15 | M162: 102.4 | N162: 79257.6 | O162: 976.3 | P162: 6241485.9 | Q162: 67.2 | R162: 85747.2 | S162: 1436215 | T162: 698804 | U162: 170801.52 | V162: 0 | AG162: 114897.2 | AH162: 55904.32 | AI162: 362294.5 | AJ162: 60120.32 | AK162: 19780.27 | AL162: 5681.46 | AM162: 1590.13 | AN162: 30230.5 | AO162: 2837.96 | AQ162: 119385.87 | AR162: 1696.11 | AS162: 133567.8 | AT162: 1834.99 | AU162: 30735 | AV162: 14954.41
A163: 149. | B163: г. Златоуст, ул. Керамическая 1-я, д. 4 | C163: 41280.98339 | D163: 0 | U163: 41280.98339 | V163: 41280.98339 | AB163: 41280.98339 | AI163: 0 | AJ163: 0
A164: 150. | B164: г. Златоуст, ул. Косотурская, д. 2 | C164: 21000741.38 | D164: 9704812.4 | E164: 3272756.4 | F164: 919100 | G164: 806740 | H164: 3948416 | I164: 757800 | M164: 156.8 | N164: 121363.2 | O164: 1268.8 | P164: 8111438.4 | Q164: 176 | R164: 224576 | S164: 1436215 | T164: 698804 | U164: 269172.0962 | V164: 98370.57618 | AB164: 98370.57618 | AG164: 114897.2 | AH164: 55904.32 | AI164: 434360.28 | AJ164: 207682.99 | AK164: 70036.99 | AL164: 19668.74 | AM164: 17264.24 | AN164: 84496.1 | AO164: 16216.92 | AR164: 2597.17 | AS164: 173584.78 | AT164: 4805.93 | AU164: 30735 | AV164: 14954.41
A165: 151. | B165: г. Златоуст, ул. Косотурская, д. 5 | C165: 17323321.93 | D165: 1609614 | F165: 567216 | G165: 496782 | I165: 545616 | K165: 500.5 | L165: 4067563.5 | M165: 80 | N165: 61920 | O165: 1500 | P165: 9589500 | Q165: 65.1 | R165: 83067.6 | S165: 1436215 | U165: 114897.2 | V165: 0 | AG165: 114897.2 | AI165: 360544.63 | AJ165: 34445.73 | AL165: 12138.42 | AM165: 10631.13 | AO165: 11676.18 | AQ165: 87045.86 | AR165: 1325.09 | AS165: 205215.3 | AT165: 1777.65 | AU165: 30735
A166: 152. | B166: г. Златоуст, ул. Машиностроителей, д. 10 | C166: 38058.79448 | D166: 0 | U166: 38058.79448 | V166: 38058.79448 | AB166: 38058.79448 | AI166: 0 | AJ166: 0
A167: 153. | B167: г. Златоуст, ул. Машиностроителей, д. 5 | C167: 38122.71579 | D167: 0 | U167: 38122.71579 | V167: 38122.71579 | AB167: 38122.71579 | AI167: 0 | AJ167: 0
A168: 154. | B168: г. Златоуст, ул. Машиностроителей, д. 6 | C168: 38028.06308 | D168: 0 | U168: 38028.06308 | V168: 38028.06308 | AB168: 38028.06308 | AI168: 0 | AJ168: 0
A169: 155. | B169: г. Златоуст, ул. Нижне-Заводская 1-я, д. 46 | C169: 58279.13536 | D169: 0 | U169: 58279.13536 | V169: 58279.13536 | AB169: 58279.13536 | AI169: 0 | AJ169: 0
A170: 156. | B170: г. Златоуст, ул. Октябрьская, д. 9 | C170: 112171.4365 | D170: 0 | U170: 112171.4365 | V170: 112171.4365 | AB170: 112171.4365 | AI170: 0 | AJ170: 0
A171: 157. | B171: г. Златоуст, ул. Тесьминская 2-я, д. 111 | C171: 74353.50578 | D171: 0 | U171: 74353.50578 | V171: 74353.50578 | AB171: 74353.50578 | AI171: 0 | AJ171: 0
A172: 158. | B172: г. Златоуст, ул. Тесьминская 2-я, д. 119 | C172: 39234.57784 | D172: 0 | U172: 39234.57784 | V172: 39234.57784 | AB172: 39234.57784 | AI172: 0 | AJ172: 0
A173: 159. | B173: г. Златоуст, ул. Тесьминская 2-я, д. 121 | C173: 39615.6472 | D173: 0 | U173: 39615.6472 | V173: 39615.6472 | AB173: 39615.6472 | AI173: 0 | AJ173: 0
A174: 160. | B174: г. Златоуст, ул. Тесьминская 2-я, д. 70 | C174: 75417.8366 | D174: 0 | U174: 75417.8366 | V174: 75417.8366 | AB174: 75417.8366 | AI174: 0 | AJ174: 0
A175: 161. | B175: г. Златоуст, ул. Тесьминская 2-я, д. 72 | C175: 74174.23928 | D175: 0 | U175: 74174.23928 | V175: 74174.23928 | AB175: 74174.23928 | AI175: 0 | AJ175: 0
A176: 162. | B176: г. Златоуст, ул. Тесьминская 3-я, д. 129 | C176: 61149.44812 | D176: 0 | U176: 61149.44812 | V176: 61149.44812 | AB176: 61149.44812 | AI176: 0 | AJ176: 0
A177: 163. | B177: г. Златоуст, ул. Техническая, д. 12 | C177: 4338930.94 | D177: 589535 | E177: 109530 | G177: 72606.6 | H177: 407398.4 | K177: 205.5 | L177: 1670098.5 | O177: 150.5 | P177: 962146.5 | Q177: 14.8 | R177: 18884.8 | T177: 698804 | U177: 315157.5 | V177: 47162.8 | W177: 8762.4 | Y177: 5808.53 | Z177: 32591.87 | AC177: 133607.88 | AE177: 76971.72 | AF177: 1510.78 | AH177: 55904.32 | AI177: 84304.64 | AJ177: 12616.05 | AK177: 2343.94 | AM177: 1553.78 | AN177: 8718.33 | AQ177: 35740.11 | AS177: 20589.94 | AT177: 404.13 | AV177: 14954.41
A178: 164. | B178: г. Златоуст, ул. Техническая, д. 13 | C178: 4330433.42 | D178: 583098.4 | E178: 109530 | G178: 179181.2 | H178: 294387.2 | K178: 205.5 | L178: 1670098.5 | O178: 150.3 | P178: 960867.9 | Q178: 14.8 | R178: 18884.8 | T178: 698804 | U178: 314540.29 | V178: 46647.88 | W178: 8762.4 | Y178: 14334.5 | Z178: 23550.98 | AC178: 133607.88 | AE178: 76869.43 | AF178: 1510.78 | AH178: 55904.32 | AI178: 84139.53 | AJ178: 12478.31 | AK178: 2343.94 | AM178: 3834.48 | AN178: 6299.89 | AQ178: 35740.11 | AS178: 20562.57 | AT178: 404.13 | AV178: 14954.41
A179: 165. | B179: г. Златоуст, ул. Техническая, д. 14 | C179: 5087539.85 | D179: 672756.6 | E179: 109530 | G179: 155828.2 | H179: 407398.4 | K179: 205.5 | L179: 1670098.5 | O179: 243.8 | P179: 1558613.4 | Q179: 14.8 | R179: 18884.8 | T179: 698804 | U179: 369532.58 | V179: 53820.53 | W179: 8762.4 | Y179: 12466.26 | Z179: 32591.87 | AC179: 133607.88 | AE179: 124689.07 | AF179: 1510.78 | AH179: 55904.32 | AI179: 98849.97 | AJ179: 14396.99 | AK179: 2343.94 | AM179: 3334.72 | AN179: 8718.33 | AQ179: 35740.11 | AS179: 33354.33 | AT179: 404.13 | AV179: 14954.41
A180: 166. | B180: г. Златоуст, ул. Техническая, д. 15 | C180: 4337522.68 | D180: 589535 | E180: 109530 | G180: 72606.6 | H180: 407398.4 | K180: 205.5 | L180: 1670098.5 | O180: 150.3 | P180: 960867.9 | Q180: 14.8 | R180: 18884.8 | T180: 698804 | U180: 315055.21 | V180: 47162.8 | W180: 8762.4 | Y180: 5808.53 | Z180: 32591.87 | AC180: 133607.88 | AE180: 76869.43 | AF180: 1510.78 | AH180: 55904.32 | AI180: 84277.27 | AJ180: 12616.05 | AK180: 2343.94 | AM180: 1553.78 | AN180: 8718.33 | AQ180: 35740.11 | AS180: 20562.57 | AT180: 404.13 | AV180: 14954.41
A181: 167. | B181: г. Златоуст, ул. Техническая, д. 16 | C181: 4301906.49 | D181: 557197.8 | E181: 109530 | G181: 153280.6 | H181: 294387.2 | K181: 205.5 | L181: 1670098.5 | O181: 150.3 | P181: 960867.9 | Q181: 14.8 | R181: 18884.8 | T181: 698804 | U181: 312468.24 | V181: 44575.83 | W181: 8762.4 | Y181: 12262.45 | Z181: 23550.98 | AC181: 133607.88 | AE181: 76869.43 | AF181: 1510.78 | AH181: 55904.32 | AI181: 83585.25 | AJ181: 11924.03 | AK181: 2343.94 | AM181: 3280.2 | AN181: 6299.89 | AQ181: 35740.11 | AS181: 20562.57 | AT181: 404.13 | AV181: 14954.41
A182: 168. | B182: г. Златоуст, ул. Техническая, д. 17 | C182: 4337522.68 | D182: 589535 | E182: 109530 | G182: 72606.6 | H182: 407398.4 | K182: 205.5 | L182: 1670098.5 | O182: 150.3 | P182: 960867.9 | Q182: 14.8 | R182: 18884.8 | T182: 698804 | U182: 315055.21 | V182: 47162.8 | W182: 8762.4 | Y182: 5808.53 | Z182: 32591.87 | AC182: 133607.88 | AE182: 76869.43 | AF182: 1510.78 | AH182: 55904.32 | AI182: 84277.27 | AJ182: 12616.05 | AK182: 2343.94 | AM182: 1553.78 | AN182: 8718.33 | AQ182: 35740.11 | AS182: 20562.57 | AT182: 404.13 | AV182: 14954.41
A183: 169. | B183: г. Златоуст, ул. Чугуновская, д. 2 | C183: 8550809.69 | D183: 0 | K183: 943.75 | L183: 7669856.25 | Q183: 550 | R183: 701800 | U183: 0 | V183: 0 | AI183: 179153.44 | AJ183: 0 | AQ183: 164134.92 | AT183: 15018.52
A184: 170. | B184: г. Златоуст, ул. Чугуновская, д. 4 | C184: 835165.7931 | D184: 0 | T184: 698804 | U184: 121407.3831 | V184: 65503.06312 | AB184: 65503.06312 | AH184: 55904.32 | AI184: 14954.41 | AJ184: 0 | AV184: 14954.41
A185: 171. | B185: г. Златоуст, ш. Кусинское, д. 3 | C185: 9534056.21 | D185: 2215040.1 | E185: 640142 | G185: 139056.5 | H185: 1284281.6 | I185: 151560 | K185: 342 | L185: 2779434 | O185: 547 | P185: 3496971 | Q185: 70 | R185: 89320 | T185: 698804 | U185: 55904.32 | V185: 0 | AH185: 55904.32 | AI185: 198582.79 | AJ185: 47401.86 | AK185: 13699.04 | AM185: 2975.81 | AN185: 27483.63 | AO185: 3243.38 | AQ185: 59479.89 | AS185: 74835.18 | AT185: 1911.45 | AV185: 14954.41
A186: 172. | B186: г. Златоуст, ш. Кусинское, д. 5А | C186: 45241.8511 | D186: 0 | U186: 45241.8511 | V186: 45241.8511 | AB186: 45241.8511 | AI186: 0 | AJ186: 0
A187: Итого по Златоустовскому городскому округу | C187: =SUM(C71:C186) -> 741280089.5 | D187: 94817807.28 | E187: 29133081.48 | F187: 7460466 | G187: 8346999.1 | H187: 41246297.6 | I187: 8630963.1 | J187: 0 | K187: 17007.74 | L187: 151680565.3 | M187: 1774.9 | N187: 1373772.6 | O187: 42079.67 | P187: 408646649.4 | Q187: 9622.73 | R187: 13062950.78 | S187: 18670795 | T187: 19566512 | U187: 19074315.01 | V187: 9311896.961 | W187: 205137.52 | X187: 37604.32 | Y187: 117682.15 | Z187: 349748.74 | AA187: 44558.64 | AB187: 8557165.591 | AC187: 4977522.96 | AD187: 10012.46 | AE187: 1689051.05 | AF187: 26847.02 | AG187: 1493663.6 | AH187: 1565320.96 | AI187: 14386722.11 | AJ187: 2029101.04 | AK187: 623447.93 | AL187: 159653.98 | AM187: 178625.76 | AN187: 882670.77 | AO187: 184702.6 | AP187: 0 | AQ187: 3245964.12 | AR187: 29398.72 | AS187: 8018089.66 | AT187: 245890.09 | AU187: 399555 | AV187: 418723.48
A188: Карабашский городской округ
A189: 173. | B189: г. Карабаш, ул. 23 годовщины Октября, д. 10 | C189: =SUM(E189:J189,L189,N189,P189,R189:T189,W189:AH189,AK189:AV189) -> 44981.65858 | D189: =SUM(E189:J189) -> 0 | U189: =SUM(W189:AH189) -> 44981.65858 | V189: =SUM(W189:AB189) -> 44981.65858 | AB189: 44981.65858 | AI189: =SUM(AK189:AV189) -> 0 | AJ189: =SUM(AK189:AP189) -> 0
A190: 174. | B190: г. Карабаш, ул. 23 годовщины Октября, д. 12 | C190: 55893.1538 | D190: 0 | U190: 55893.1538 | V190: 55893.1538 | AB190: 55893.1538 | AI190: 0 | AJ190: 0
A191: 175. | B191: г. Карабаш, ул. 23 годовщины Октября, д. 14 | C191: 46186.32946 | D191: 0 | U191: 46186.32946 | V191: 46186.32946 | AB191: 46186.32946 | AI191: 0 | AJ191: 0
A192: 176. | B192: г. Карабаш, ул. 23 годовщины Октября, д. 25 | C192: 41497.43326 | D192: 0 | U192: 41497.43326 | V192: 41497.43326 | AB192: 41497.43326 | AI192: 0 | AJ192: 0
A193: 177. | B193: г. Карабаш, ул. 23 годовщины Октября, д. 27 | C193: 43556.746 | D193: 0 | U193: 43556.746 | V193: 43556.746 | AB193: 43556.746 | AI193: 0 | AJ193: 0
A194: 178. | B194: г. Карабаш, ул. 23 годовщины Октября, д. 4 | C194: 46253.93854 | D194: 0 | U194: 46253.93854 | V194: 46253.93854 | AB194: 46253.93854 | AI194: 0 | AJ194: 0
A195: 179. | B195: г. Карабаш, ул. 23 годовщины Октября, д. 5 | C195: 78706.36523 | D195: 0 | U195: 78706.36523 | V195: 78706.36523 | AB195: 78706.36523 | AI195: 0 | AJ195: 0
A196: 180. | B196: г. Карабаш, ул. 23 годовщины Октября, д. 6 | C196: 45994.7704 | D196: 0 | U196: 45994.7704 | V196: 45994.7704 | AB196: 45994.7704 | AI196: 0 | AJ196: 0
A197: 181. | B197: г. Карабаш, ул. 23 годовщины Октября, д. 8 | C197: 44459.22478 | D197: 0 | U197: 44459.22478 | V197: 44459.22478 | AB197: 44459.22478 | AI197: 0 | AJ197: 0
A198: 182. | B198: г. Карабаш, ул. Ватутина, д. 10 | C198: 393774.73 | D198: 106150 | G198: 106150 | Q198: 197 | R198: 251372 | U198: 28601.76 | V198: 8492 | Y198: 8492 | AF198: 20109.76 | AI198: 7650.97 | AJ198: 2271.61 | AM198: 2271.61 | AT198: 5379.36
A199: 183. | B199: г. Карабаш, ул. Ватутина, д. 6 | C199: 5978755.83 | D199: 1272873.8 | E199: 785451.8 | G199: 286605 | I199: 200817 | O199: 650 | P199: 4155450 | U199: 434265.9 | V199: 101829.9 | W199: 62836.14 | Y199: 22928.4 | AA199: 16065.36 | AE199: 332436 | AI199: 116166.13 | AJ199: 27239.5 | AK199: 16808.67 | AM199: 6133.35 | AO199: 4297.48 | AS199: 88926.63
A200: 184. | B200: г. Карабаш, ул. Гагарина, д. 10 | C200: 794698.91 | D200: 723654.91 | E200: 723654.91 | U200: 57892.39 | V200: 57892.39 | W200: 57892.39 | AI200: 13151.61 | AJ200: 13151.61 | AK200: 13151.61
A201: 185. | B201: г. Карабаш, ул. Гагарина, д. 11 | C201: 1043108.49 | D201: 994669.39 | E201: 441475.39 | I201: 553194 | U201: 35318.03 | V201: 35318.03 | W201: 35318.03 | AI201: 13121.07 | AJ201: 13121.07 | AK201: 8023.32 | AO201: 5097.75
A202: 186. | B202: г. Карабаш, ул. Гагарина, д. 14 | C202: 4731373.77 | D202: 4308401.35 | E202: 487223.76 | F202: 481630.33 | G202: 353824.49 | H202: 2985722.77 | U202: 344672.11 | V202: 344672.11 | W202: 38977.9 | X202: 38530.43 | Y202: 28305.96 | Z202: 238857.82 | AI202: 78300.31 | AJ202: 78300.31 | AK202: 8854.74 | AL202: 8753.08 | AM202: 6430.36 | AN202: 54262.13
... 2623 more rows
